fUSD/lending_fUSD_20250126
["ID","MTS","AMOUNT","RATE_DAILY","PERIOD"]
[350423114,1737862248167,-150.0,0.00011,2]
[350423115,1737862248177,-150.0,0.00011,2]
[350423116,1737862248186,-150.0,0.00011,2]
[350423117,1737862248195,-150.1453354,0.00011,2]
[350423118,1737862248204,-150.20532567,0.00011,2]
[350423119,1737862248214,-150.0,0.00011,2]
[350423120,1737862248223,-176827.0,0.00011,2]
[350423121,1737862248233,-500.0,0.00011027,2]
[350423122,1737862248242,-500.0,0.00011054,2]
[350423123,1737862248251,-500.0,0.00011081,2]
[350423124,1737862248261,-571.0,0.00011099,2]
[350423125,1737862248270,-49270.00799624,0.00011099,2]
[350423126,1737862248279,-49270.00799624,0.00011099,2]
[350423127,1737862248288,-49270.00799624,0.00011099,2]
[350423128,1737862248297,-47292.20446828,0.00011099,2]
[350423129,1737862248306,-47292.20446819,0.00011099,2]
[350423130,1737862248318,-47292.20446819,0.00011099,2]
[350423131,1737862248334,-183.228816,0.00011099,2]
[350423132,1737862248343,-183.228816,0.00011099,2]
[350423133,1737862248353,-183.228816,0.00011099,2]
[350423134,1737862248365,-183.228816,0.00011099,2]
[350423135,1737862248374,-152.370328,0.00011099,2]
[350423136,1737862248383,-152.370328,0.00011099,2]
[350423137,1737862248393,-151.0,0.00011099,2]
[350423138,1737862248407,-167.828643,0.00011099,2]
[350423139,1737862248422,-167.828643,0.00011099,2]
[350423140,1737862248431,-151.0,0.00011099,2]
[350423141,1737862248440,-151.0,0.00011099,2]
[350423142,1737862248450,-151.0,0.00011099,2]
[350423143,1737862248459,-49270.00799624,0.00011102,2]
[350423144,1737862248469,-500.0,0.00011109,2]
[350423145,1737862248480,-2000.0,0.0001111,2]
[350423146,1737862248490,-200.0,0.0001111,2]
[350423147,1737862248499,-200.0,0.0001111,2]
[350423148,1737862248508,-47292.20446819,0.00011127,2]
[350423149,1737862248517,-500.0,0.00011136,2]
[350423150,1737862248526,-500.0,0.00011136,2]
[350423151,1737862248539,-500.0,0.00011164,2]
[350423152,1737862248548,-150.72,0.00011178,2]
[350423153,1737862248557,-150.0,0.00011178,2]
[350423154,1737862248566,-150.0,0.00011178,2]
[350423155,1737862248576,-150.0,0.00011178,2]
[350423156,1737862248585,-150.0,0.00011178,2]
[350423157,1737862248594,-500.0,0.00011191,2]
[350423158,1737862248603,-438.87,0.000112,2]
[350423159,1737862248613,-773.77,0.000112,2]
[350423160,1737862248623,-441.26,0.000112,2]
[350423161,1737862248632,-773.77,0.000112,2]
[350423162,1737862248642,-150.0,0.000112,2]
[350423163,1737862248651,-150.0,0.000112,2]
[350423164,1737862248660,-151.68,0.000112,2]
[350423165,1737862248670,-150.0,0.000112,2]
[350423166,1737862248679,-152.02,0.000112,2]
[350423167,1737862248689,-994.98,0.000112,2]
[350423168,1737862248702,-438.87,0.000112,2]
[350423169,1737862248711,-150.51,0.000112,2]
[350423170,1737862248722,-773.77,0.000112,2]
[350423171,1737862248731,-438.87,0.000112,2]
[350423172,1737862248741,-150.0,0.000112,2]
[350423173,1737862248750,-438.07,0.000112,2]
[350423174,1737862248926,-150.0,0.000112,2]
[350423175,1737862248936,-150.0,0.000112,2]
[350423176,1737862248947,-336.53,0.000112,2]
[350423177,1737862248956,-150.0,0.000112,2]
[350423178,1737862248967,-438.87,0.000112,2]
[350423179,1737862248978,-982.9,0.000112,2]
[350423180,1737862248987,-150.0,0.000112,2]
[350423181,1737862248997,-438.47,0.000112,2]
[350423182,1737862249007,-150.0,0.000112,2]
[350423183,1737862249016,-150.0,0.000112,2]
[350423184,1737862249026,-438.07,0.000112,2]
[350423185,1737862249036,-150.0,0.000112,2]
[350423186,1737862249046,-982.9,0.000112,2]
[350423187,1737862249056,-150.0,0.000112,2]
[350423188,1737862249065,-300.76,0.000112,2]
[350423189,1737862249075,-500.0,0.00011218,2]
[350423190,1737862249085,-2000.0,0.00011221,2]
[350423191,1737862249094,-200.0,0.00011221,2]
[350423192,1737862249104,-49270.00799624,0.00011235,2]
[350423193,1737862249115,-589.56,0.00011237,2]
[350423194,1737862249124,-500.0,0.00011246,2]
[350423195,1737862249133,-47292.20446819,0.00011256,2]
[350423196,1737862249143,-500.0,0.00011273,2]
[350423197,1737862249153,-500.0,0.00011273,2]
[350423198,1737862249162,-150.0,0.000113,2]
[350423199,1737862249171,-150.0,0.000113,2]
[350423200,1737862249181,-500.0,0.00011301,2]
[350423201,1737862249190,-150.0,0.00011315,2]
[350423202,1737862249200,-150.0,0.00011315,2]
[350423203,1737862249209,-150.0,0.00011315,2]
[350423204,1737862249219,-150.0,0.00011315,2]
[350423205,1737862249228,-150.0,0.00011315,2]
[350423206,1737862249238,-150.0,0.00011315,2]
[350423207,1737862249247,-500.0,0.00011328,2]
[350423208,1737862249256,-200.0,0.00011333,2]
[350423209,1737862249266,-474.26995353,0.00011355,2]
[350423210,1737862249275,-49270.00799624,0.00011368,2]
[350423211,1737862249284,-47292.20446819,0.00011384,2]
[350423212,1737862249294,-150.0,0.00011393,2]
[350423213,1737862249304,-438.07,0.000114,2]
[350423214,1737862249313,-500.0,0.0001141,2]
[350423215,1737862249323,-200.0,0.00011447,2]
[350423216,1737862249332,-426.51866325,0.00011462,2]
[350423217,1737862249342,-982.9,0.000115,2]
[350423218,1737862249351,-438.07,0.000115,2]
[350423219,1737862249360,-150.0,0.000115,2]
[350423220,1737862249369,-150.0,0.000115,2]
[350423221,1737862249378,-150.0,0.000115,2]
[350423222,1737862249388,-438.07,0.000115,2]
[350423223,1737862249397,-150.0,0.000115,2]
[350423224,1737862249406,-150.0,0.000115,2]
[350423225,1737862249416,-438.07,0.000115,2]
[350423226,1737862249425,-250.0,0.000115,2]
[350423227,1737862249435,-250.0,0.000115,2]
[350423228,1737862249444,-250.0,0.000115,2]
[350423229,1737862249454,-250.0,0.000115,2]
[350423230,1737862249464,-250.0,0.000115,2]
[350423231,1737862249473,-250.0,0.000115,2]
[350423232,1737862249482,-250.0,0.000115,2]
[350423233,1737862249491,-250.0,0.000115,2]
[350423234,1737862249501,-250.0,0.000115,2]
[350423235,1737862249511,-250.0,0.000115,2]
[350423236,1737862249520,-250.0,0.000115,2]
[350423237,1737862249530,-250.0,0.000115,2]
[350423238,1737862249539,-250.0,0.000115,2]
[350423239,1737862249548,-250.0,0.000115,2]
[350423240,1737862249558,-250.0,0.000115,2]
[350423241,1737862249567,-250.0,0.000115,2]
[350423242,1737862249577,-250.0,0.000115,2]
[350423243,1737862249587,-250.0,0.000115,2]
[350423244,1737862249596,-250.0,0.000115,2]
[350423245,1737862249606,-250.0,0.000115,2]
[350423246,1737862249614,-250.0,0.000115,2]
[350423247,1737862249623,-250.0,0.000115,2]
[350423248,1737862249633,-250.0,0.000115,2]
[350423249,1737862249642,-250.0,0.000115,2]
[350423250,1737862249652,-250.0,0.000115,2]
[350423251,1737862249662,-250.0,0.000115,2]
[350423252,1737862249670,-250.0,0.000115,2]
[350423253,1737862249680,-250.0,0.000115,2]
[350423254,1737862249689,-250.0,0.000115,2]
[350423255,1737862249701,-250.0,0.000115,2]
[350423256,1737862249711,-250.0,0.000115,2]
[350423257,1737862249720,-250.0,0.000115,2]
[350423258,1737862249730,-250.0,0.000115,2]
[350423259,1737862249740,-250.0,0.000115,2]
[350423260,1737862249750,-259.3,0.000115,2]
[350423261,1737862249759,-49270.00799624,0.00011501,2]
[350423262,1737862249770,-2751.0,0.00011507,2]
[350423263,1737862249780,-47292.20446819,0.00011513,2]
[350423264,1737862249790,-500.0,0.00011547,2]
[350423265,1737862249799,-150.0,0.00011579,2]
[350423266,1737862249809,-441.6,0.00011589,2]
[350423267,1737862249818,-49270.00799624,0.00011634,2]
[350423268,1737862249828,-47292.20446819,0.00011642,2]
[350423269,1737862249838,-500.0,0.00011684,2]
[350423270,1737862249847,-255.0,0.00011707,2]
[350423271,1737862249857,-237.51,0.00011719,2]
[350423272,1737862249866,-49270.00799624,0.00011767,2]
[350423273,1737862249875,-47292.20446819,0.00011771,2]
[350423274,1737862249885,-150.0,0.00011786,2]
[350423275,1737862249896,-4184.35420078,0.000118,2]
[350423276,1737862249905,-500.0,0.00011821,2]
[350423277,1737862249914,-587.0,0.0001184,2]
[350423278,1737862249923,-150.0,0.00011846,2]
[350423279,1737862249933,-47292.20446819,0.000119,2]
[350423280,1737862249947,-49270.00799624,0.000119,2]
[350423281,1737862249968,-371.37945412,0.000119,2]
[350423282,1737862249986,-500.0,0.00011958,2]
[350423283,1737862250006,-500.74296015,0.00011973,2]
[350423284,1737862250022,-500.0,0.00011973,2]
[350423285,1737862250040,-3262.0499642,0.00011992,2]
[350423286,1737862250061,-2951.9325865,0.00011992,2]
[350423287,1737862250079,-2641.8152087,0.00011992,2]
[350423288,1737862250099,-2331.6978309,0.00011992,2]
[350423289,1737862250117,-2021.5804532,0.00011992,2]
[350423290,1737862250134,-987.9823837,0.00011992,2]
[350423291,1737862250149,-899.3348367,0.00011992,2]
[350423292,1737862250168,-810.6872896,0.00011992,2]
[350423293,1737862250181,-722.0397426,0.00011992,2]
[350423294,1737862250199,-633.3921956,0.00011992,2]
[350423295,1737862250211,-90590.53606909,0.00012,2]
[350423296,1737862251587,-296.21242944,0.00012,2]
[350423297,1737862251615,-4208.19490955,0.00012,2]
[350423298,1737862251626,-4200.04995,0.00012,2]
[350423299,1737862251647,-645.12,0.00012,2]
[350423300,1737862251658,-826.63609716,0.00012,2]
[350423301,1737862251673,-452.1720929,0.00012,2]
[350423302,1737862252392,-1717.97563696,0.00012,2]
[350423303,1737862252403,-364.3703331,0.00012,2]
[350423304,1737862252414,-1795.91815454,0.00012,2]
[350423305,1737862252442,-400.7816927,0.00012,2]
[350423306,1737862252453,-1470.51803953,0.00012,2]
[350423307,1737862252468,-450.85493208,0.00012,2]
[350423308,1737862252478,-1051.96977662,0.00012,2]
[350423309,1737862252491,-1008.34431669,0.00012,2]
[350423310,1737862252511,-74673.29675572,0.00012,2]
[350423311,1737862252521,-252995.71829802,0.00012,2]
[350423312,1737862252530,-759.50607837,0.00012,2]
[350423313,1737862252540,-300.0,0.00012,2]
[350423314,1737862252549,-1000.0,0.00012,2]
[350423315,1737862252558,-995620.37879804,0.00012,2]
[350423316,1737862252586,-831.59709099,0.00012,2]
[350423317,1737862252598,-4522.01442938,0.00012,2]
[350423318,1737862252613,-649.69252998,0.00012,2]
[350423319,1737862482915,301.0,0.00022,120]
[350423336,1737862696992,-818.56,9.516e-05,2]
[350423354,1737863245658,1005.13,8.873e-05,2]
[350423366,1737863431709,-167.03,0.00010137,2]
[350423367,1737863431718,-500.0,0.00010548,2]
[350423368,1737863431728,-542.0,0.00010575,2]
[350423369,1737863431737,-513.68,0.00010717,2]
[350423370,1737863431746,-512.83614608,0.00010821,2]
[350423371,1737863431765,-487.16385392,0.00010821,2]
[350423372,1737863431775,-6346.8229,0.000109,2]
[350423373,1737863431784,-6399.08257462,0.00010912,2]
[350423374,1737863431794,-6399.08257462,0.00010912,2]
[350423375,1737863431803,-245.80929489,0.00010913,2]
[350423376,1737863431812,-6399.08257462,0.00010917,2]
[350423377,1737863431821,-246.11854786,0.00010918,2]
[350423378,1737863431830,-252.77,0.00010923,2]
[350423379,1737863431839,-3055.90416546,0.00010925,2]
[350423380,1737863431848,-245.80929489,0.00010926,2]
[350423381,1737863431857,-3055.90416546,0.00010927,2]
[350423382,1737863431866,-245.80929489,0.00010929,2]
[350423383,1737863431875,-760.45579606,0.0001093,2]
[350423384,1737863431884,-20263.76148633,0.00010933,2]
[350423385,1737863431893,-200.0,0.00010934,2]
[350423386,1737863431902,-760.45579606,0.00010935,2]
[350423387,1737863431911,-20263.76148633,0.00010937,2]
[350423388,1737863431920,-3107.16761277,0.00010937,2]
[350423389,1737863431929,-3055.90416546,0.00010938,2]
[350423390,1737863431938,-246.11854786,0.0001094,2]
[350423391,1737863431947,-3107.16761277,0.00010945,2]
[350423392,1737863431957,-20263.76148633,0.00010948,2]
[350423393,1737863431966,-20263.76148633,0.00010951,2]
[350423394,1737863431975,-3107.16761277,0.00010955,2]
[350423395,1737863431984,-246.11854786,0.00010956,2]
[350423396,1737863431993,-245.80929489,0.00010959,2]
[350423397,1737863432002,-246.11854786,0.00010959,2]
[350423398,1737863432011,-760.45579606,0.00010965,2]
[350423399,1737863432021,-6399.08257462,0.00010965,2]
[350423400,1737863432030,-20263.76148633,0.00010969,2]
[350423401,1737863432039,-3055.90416546,0.00010978,2]
[350423402,1737863432048,-245.80929489,0.00010978,2]
[350423403,1737863432058,-6399.08257462,0.00010981,2]
[350423404,1737863432067,-3107.16761277,0.00010982,2]
[350423405,1737863432075,-3055.90416546,0.00010984,2]
[350423406,1737863432084,-150.0,0.00010986,2]
[350423407,1737863432097,-3107.16761277,0.00010986,2]
[350423408,1737863432106,-760.45579606,0.00010993,2]
[350423409,1737863432115,-246.11854786,0.00010998,2]
[350423410,1737863432124,-760.45579606,0.00010999,2]
[350423411,1737863432133,-7316.78225702,0.00011,2]
[350423412,1737863432142,-500.0,0.00011,4]
[350423413,1737863432152,-150.0,0.00011,2]
[350423414,1737863432162,-295.61,0.00011022,2]
[350423415,1737863432171,-3569.83,0.00011074,2]
[350423416,1737863432182,-1557.2,0.0001109,2]
[350423417,1737863432191,-150.0,0.00011099,2]
[350423418,1737863432200,-2020.0,0.000111,2]
[350423419,1737863432210,-1270.0,0.000111,2]
[350423421,1737863432219,-637.0,0.000111,2]
[350423423,1737863432228,-569.296,0.000111,2]
[350423425,1737863432237,-151.773,0.000111,2]
[350423427,1737863432247,-1865.0,0.000111,2]
[350423429,1737863432256,-1262.0,0.000111,2]
[350423430,1737863432266,-782.0,0.000111,2]
[350423432,1737863432275,-2965.215,0.000111,2]
[350423434,1737863432284,-908.0,0.000111,2]
[350423436,1737863432293,-150.26,0.000111,2]
[350423438,1737863432302,-538.0,0.000111,2]
[350423440,1737863432311,-3987.0,0.000111,2]
[350423442,1737863432320,-3905.0,0.000111,2]
[350423444,1737863432329,-150.0,0.000111,2]
[350423446,1737863432338,-1177.0,0.000111,2]
[350423448,1737863432347,-1000.0,0.000111,4]
[350423450,1737863432356,-250.0,0.00011131,2]
[350423452,1737863432365,-1005.13,0.00011137,2]
[350423454,1737863432374,-250.0,0.00011152,2]
[350423456,1737863432383,-1500.0,0.000112,4]
[350423458,1737863432393,-2041.86,0.00011206,2]
[350423460,1737863432402,-250.0,0.00011221,2]
[350423462,1737863432411,-250.0,0.00011289,2]
[350423464,1737863432420,-2000.0,0.000113,4]
[350423466,1737863432429,-353.73,0.00011362,2]
[350423467,1737863432438,-366.0,0.000114,2]
[350423468,1737863432447,-2500.0,0.000114,4]
[350423469,1737863432456,-500.0,0.000115,4]
[350423470,1737863432466,-500.0,0.000116,4]
[350423471,1737863432475,-430.87570697,0.00011602,2]
[350423472,1737863432484,-500.0,0.000117,4]
[350423473,1737863432494,-150.0,0.00011727,2]
[350423474,1737863432503,-150.0,0.00011731,2]
[350423475,1737863432512,-150.0,0.00011734,2]
[350423476,1737863432521,-1000.0,0.00011734,2]
[350423477,1737863432530,-1000.0,0.00011735,2]
[350423478,1737863432539,-150.0,0.00011748,2]
[350423479,1737863432548,-150.0,0.00011749,2]
[350423480,1737863432557,-150.0,0.00011754,2]
[350423481,1737863432566,-150.0,0.00011761,2]
[350423482,1737863432575,-150.0,0.00011761,2]
[350423483,1737863432584,-1000.0,0.00011763,2]
[350423484,1737863432593,-150.0,0.00011764,2]
[350423485,1737863432603,-150.0,0.00011764,2]
[350423486,1737863432611,-150.0,0.0001177,2]
[350423487,1737863432620,-150.0,0.00011778,2]
[350423488,1737863432630,-150.0,0.00011783,2]
[350423489,1737863432639,-150.0,0.0001179,2]
[350423490,1737863432648,-150.0,0.00011791,2]
[350423491,1737863432658,-150.0,0.00011793,2]
[350423492,1737863432667,-150.0,0.00011794,2]
[350423493,1737863432676,-150.0,0.00011799,2]
[350423494,1737863432684,-500.0,0.000118,4]
[350423495,1737863432693,-3129.39093786,0.00011801,2]
[350423496,1737863432703,-150.0,0.00011803,2]
[350423497,1737863432712,-150.0,0.00011808,2]
[350423498,1737863432721,-150.0,0.00011809,2]
[350423499,1737863432731,-3129.39093777,0.00011812,2]
[350423500,1737863432742,-150.0,0.00011813,2]
[350423501,1737863432752,-150.0,0.00011816,2]
[350423502,1737863432761,-1000.0,0.00011819,2]
[350423503,1737863432770,-150.0,0.0001182,2]
[350423504,1737863432779,-150.0,0.00011823,2]
[350423505,1737863432788,-3129.39093777,0.00011823,2]
[350423506,1737863432797,-150.0,0.00011826,2]
[350423507,1737863432806,-150.0,0.00011828,2]
[350423508,1737863432815,-150.0,0.00011829,2]
[350423509,1737863432823,-3129.39093777,0.00011834,2]
[350423510,1737863432832,-150.0,0.00011838,2]
[350423511,1737863432841,-150.0,0.00011838,2]
[350423512,1737863432851,-150.0,0.00011839,2]
[350423513,1737863432863,-150.0,0.00011839,2]
[350423514,1737863432873,-150.0,0.00011843,2]
[350423515,1737863432882,-3129.39093777,0.00011845,2]
[350423516,1737863432892,-150.0,0.0001185,2]
[350423517,1737863432902,-150.0,0.00011854,2]
[350423518,1737863432911,-150.0,0.00011855,2]
[350423519,1737863432920,-3129.39093777,0.00011856,2]
[350423520,1737863432929,-150.0,0.00011861,2]
[350423521,1737863432938,-150.0,0.00011866,2]
[350423522,1737863432947,-150.0,0.00011867,2]
[350423523,1737863432955,-3129.39093777,0.00011867,2]
[350423524,1737863432965,-150.0,0.00011868,2]
[350423525,1737863432974,-150.0,0.0001187,2]
[350423526,1737863432983,-150.0,0.00011873,2]
[350423527,1737863432993,-150.0,0.00011874,2]
[350423528,1737863433002,-150.0,0.00011875,2]
[350423529,1737863433262,-150.0,0.00011876,2]
[350423530,1737863433272,-150.0,0.00011876,2]
[350423531,1737863433281,-150.0,0.00011877,2]
[350423532,1737863433291,-3129.39093777,0.00011878,2]
[350423533,1737863433301,-150.0,0.0001188,2]
[350423534,1737863433311,-150.0,0.0001188,2]
[350423535,1737863433320,-3000.0,0.0001188,2]
[350423536,1737863433329,-150.0,0.00011883,2]
[350423537,1737863433339,-150.0,0.00011884,2]
[350423538,1737863433348,-3129.39093777,0.00011889,2]
[350423539,1737863433358,-150.0,0.0001189,2]
[350423540,1737863433367,-150.0,0.00011896,2]
[350423541,1737863433376,-1123.9833,0.000119,2]
[350423542,1737863433390,-151.49562239,0.000119,2]
[350423543,1737863433399,-159.889,0.000119,2]
[350423544,1737863433408,-500.0,0.000119,2]
[350423545,1737863433417,-500.0,0.000119,2]
[350423546,1737863433426,-500.0,0.000119,2]
[350423547,1737863433435,-500.0,0.000119,2]
[350423548,1737863433444,-500.0,0.000119,2]
[350423549,1737863433453,-500.0,0.000119,2]
[350423550,1737863433463,-500.0,0.000119,2]
[350423551,1737863433472,-500.0,0.000119,2]
[350423552,1737863433482,-500.0,0.000119,2]
[350423553,1737863433491,-500.0,0.000119,2]
[350423554,1737863433500,-500.0,0.000119,2]
[350423555,1737863433509,-500.0,0.000119,2]
[350423556,1737863433520,-500.0,0.000119,2]
[350423557,1737863433529,-500.0,0.000119,2]
[350423558,1737863433538,-500.0,0.000119,2]
[350423559,1737863433548,-500.0,0.000119,2]
[350423560,1737863433557,-500.0,0.000119,2]
[350423561,1737863433566,-500.0,0.000119,2]
[350423562,1737863433575,-500.0,0.000119,2]
[350423563,1737863433585,-500.0,0.000119,2]
[350423564,1737863433594,-500.0,0.000119,2]
[350423565,1737863433603,-500.0,0.000119,2]
[350423566,1737863433613,-591.0,0.000119,2]
[350423567,1737863433622,-500.0,0.000119,2]
[350423568,1737863433631,-500.0,0.000119,2]
[350423569,1737863433641,-500.0,0.000119,2]
[350423570,1737863433650,-500.0,0.000119,2]
[350423571,1737863433659,-500.0,0.000119,2]
[350423572,1737863433669,-500.0,0.000119,2]
[350423573,1737863433679,-500.0,0.000119,2]
[350423574,1737863433688,-500.0,0.000119,2]
[350423575,1737863433697,-500.0,0.000119,2]
[350423576,1737863433706,-500.0,0.000119,2]
[350423577,1737863433716,-500.0,0.000119,2]
[350423578,1737863433726,-500.0,0.000119,2]
[350423579,1737863433735,-500.0,0.000119,2]
[350423580,1737863433744,-817.0,0.000119,2]
[350423581,1737863433754,-150.0,0.000119,2]
[350423582,1737863433764,-150.0,0.000119,2]
[350423583,1737863433774,-500.0,0.000119,2]
[350423584,1737863433783,-500.0,0.000119,2]
[350423585,1737863433793,-500.0,0.000119,2]
[350423586,1737863433802,-500.0,0.000119,2]
[350423587,1737863433812,-500.0,0.000119,2]
[350423588,1737863433821,-500.0,0.000119,2]
[350423589,1737863433830,-500.0,0.000119,2]
[350423590,1737863433840,-500.0,0.000119,2]
[350423591,1737863433849,-500.0,0.000119,2]
[350423592,1737863433860,-500.0,0.000119,2]
[350423593,1737863433870,-500.0,0.000119,2]
[350423594,1737863433880,-500.0,0.000119,2]
[350423595,1737863433889,-500.0,0.000119,2]
[350423596,1737863433898,-500.0,0.000119,2]
[350423597,1737863433907,-500.0,0.000119,2]
[350423598,1737863433917,-500.0,0.000119,2]
[350423599,1737863433926,-500.0,0.000119,2]
[350423600,1737863433935,-500.0,0.000119,2]
[350423601,1737863433944,-500.0,0.000119,2]
[350423602,1737863433953,-500.0,0.000119,2]
[350423603,1737863433964,-500.0,0.000119,2]
[350423604,1737863433973,-500.0,0.000119,2]
[350423605,1737863433983,-500.0,0.000119,2]
[350423606,1737863433993,-500.0,0.000119,2]
[350423607,1737863434002,-500.0,0.000119,2]
[350423608,1737863434011,-500.0,0.000119,2]
[350423609,1737863434020,-500.0,0.000119,2]
[350423610,1737863434029,-500.0,0.000119,2]
[350423611,1737863434039,-500.0,0.000119,2]
[350423612,1737863434048,-500.0,0.000119,2]
[350423613,1737863434057,-500.0,0.000119,2]
[350423614,1737863434066,-500.0,0.000119,2]
[350423615,1737863434075,-500.0,0.000119,2]
[350423616,1737863434084,-500.0,0.000119,2]
[350423617,1737863434097,-500.0,0.000119,2]
[350423618,1737863434110,-500.0,0.000119,2]
[350423619,1737863434119,-500.0,0.000119,2]
[350423620,1737863434128,-500.0,0.000119,2]
[350423621,1737863434138,-500.0,0.000119,2]
[350423622,1737863434147,-500.0,0.000119,2]
[350423623,1737863434156,-500.0,0.000119,2]
[350423624,1737863434166,-500.0,0.000119,2]
[350423625,1737863434175,-500.0,0.000119,2]
[350423626,1737863434185,-500.0,0.000119,2]
[350423627,1737863434194,-500.0,0.000119,2]
[350423628,1737863434204,-500.0,0.000119,2]
[350423629,1737863434213,-913.0,0.000119,2]
[350423630,1737863434224,-3418.1929,0.000119,2]
[350423631,1737863434234,-551.0,0.000119,4]
[350423632,1737863434243,-182.67272988,0.000119,2]
[350423633,1737863434252,-3129.39093777,0.000119,2]
[350423634,1737863434262,-169.01650556,0.000119,2]
[350423635,1737863434273,-37195.66164511,0.000119,2]
[350423636,1737863434282,-239.49192706,0.000119,2]
[350423637,1737863434292,-5853.30956343,0.000119,2]
[350423638,1737863434302,-2232.98620854,0.000119,2]
[350423639,1737863434311,-180.72969228,0.000119,2]
[350423640,1737863434321,-150.0,0.00011901,2]
[350423641,1737863434330,-150.0,0.00011905,2]
[350423642,1737863434339,-150.0,0.00011908,2]
[350423643,1737863434349,-150.0,0.00011916,2]
[350423644,1737863434359,-150.0,0.00011922,2]
[350423645,1737863434368,-150.0,0.00011928,2]
[350423646,1737863434378,-150.0,0.00011932,2]
[350423647,1737863434388,-150.0,0.00011933,2]
[350423648,1737863434397,-150.0,0.00011933,2]
[350423649,1737863434407,-150.0,0.00011934,2]
[350423650,1737863434416,-150.0,0.00011935,2]
[350423651,1737863434426,-150.0,0.00011938,2]
[350423652,1737863434436,-150.0,0.00011948,2]
[350423653,1737863434446,-150.0,0.0001195,2]
[350423654,1737863434455,-150.0,0.00011953,2]
[350423655,1737863434465,-150.0,0.00011954,2]
[350423656,1737863434477,-150.0,0.00011956,2]
[350423657,1737863434487,-1000.0,0.00011962,2]
[350423658,1737863434497,-150.0,0.00011962,2]
[350423659,1737863434506,-150.0,0.00011966,2]
[350423660,1737863434516,-150.0,0.00011966,2]
[350423661,1737863434526,-150.0,0.00011968,2]
[350423662,1737863434535,-150.0,0.00011968,2]
[350423663,1737863434544,-150.0,0.00011971,2]
[350423664,1737863434553,-296.47475308,0.00011973,2]
[350423665,1737863434562,-500.0,0.00011973,2]
[350423666,1737863434571,-150.0,0.00011975,2]
[350423667,1737863434581,-150.0,0.00011975,2]
[350423668,1737863434589,-1000.0,0.00011978,2]
[350423669,1737863434599,-150.0,0.00011983,2]
[350423670,1737863434608,-150.0,0.00011984,2]
[350423671,1737863434617,-1060.8650861,0.00011988,2]
[350423672,1737863434627,-1060.8650861,0.00011988,2]
[350423673,1737863434636,-150.0,0.00011989,2]
[350423674,1737863434645,-150.0,0.00011991,2]
[350423675,1737863434655,-1060.8650861,0.00011991,2]
[350423676,1737863434664,-1060.8650861,0.00011991,2]
[350423677,1737863434673,-1060.8650861,0.00011991,2]
[350423678,1737863434683,-1060.8650861,0.00011991,2]
[350423679,1737863434692,-150.0,0.00011996,2]
[350423680,1737863434702,-150.0,0.00011996,2]